bitfinex/quotes_SOLUSD_20251212
["timestamp","ask_amount","ask_price","bid_price","bid_amount"]
[1765556983226,8.80994492,133.68,133.65,12.16503709]
[1765556983415,8.80994492,133.68,133.63,8.14332184]
[1765556983619,8.80994492,133.68,133.64,12.16503709]
[1765556983817,83.80994492,133.68,133.63,8.14332184]
[1765556984050,8.2,133.69,133.64,0.66]
[1765556984540,104.33604414,133.71,133.64,0.94432314]
[1765556984541,88.0470912,133.71,133.64,0.94432314]
[1765556984725,88.0470912,133.71,133.67,12.16503709]
[1765556984921,75.0,133.69,133.63,26.8516957]
[1765556985139,75.0,133.69,133.65,12.16503709]
[1765556985314,75.0,133.69,133.67,12.16503709]
[1765556985717,75.0,133.69,133.64,0.66]
[1765556985914,75.0,133.69,133.66,12.16503709]
[1765556986419,75.0,133.69,133.64,0.66]
[1765556986819,75.0,133.69,133.66,12.16503709]
[1765556987845,75.0,133.69,133.66,19.6465027]
[1765556988421,75.0,133.69,133.66,7.48146561]
[1765556988629,75.0,133.69,133.66,12.16503709]
[1765556988824,8.80994492,133.68,133.61,26.89098581]
[1765556989049,82.58028795,133.69,133.65,12.16503709]
[1765556989419,75.0,133.69,133.66,19.64666308]
[1765556989739,94.74525994,133.69,133.64,12.16503709]
[1765556989932,83.80994492,133.68,133.64,12.16503709]
[1765556990122,83.90994492,133.68,133.64,12.16503709]
[1765556990447,75.1,133.67,133.63,19.64802019]
[1765556990644,92.00994492,133.68,133.63,19.64802019]
[1765556990645,73.64,133.68,133.66,13.0470912]
[1765556990851,0.77,133.73,133.69,13.0470912]
[1765556991031,0.77,133.73,133.71,12.16503709]
[1765556991723,0.77,133.73,133.67,0.28432314]
[1765556992043,0.77,133.73,133.66,13.0470912]
[1765556992254,8.24785344,133.73,133.69,12.16503709]
[1765556992422,20.41289053,133.73,133.68,12.16503709]
[1765556992622,0.67,133.72,133.68,19.64541223]
[1765556993026,87.83503709,133.72,133.67,7.48070619]
[1765556993332,13.0470912,133.71,133.67,12.16503709]
[1765556993530,13.7170912,133.71,133.67,12.16503709]
[1765556993768,0.67,133.7,133.67,12.16503709]
[1765556994252,0.67,133.7,133.67,19.64612218]
[1765556995457,0.67,133.7,133.65,26.18749412]
[1765556995660,0.67,133.72,133.69,12.16503709]
[1765556995950,0.67,133.71,133.68,12.16503709]
[1765556996137,0.67,133.71,133.68,12.16490929]
[1765556996324,0.67,133.71,133.65,26.18749412]
[1765556996524,12.83490929,133.71,133.66,12.16490929]
[1765556996925,12.83490929,133.71,133.64,15.66264156]
[1765556996926,96.64485421,133.7,133.64,15.66264156]
[1765556997262,104.84485421,133.7,133.65,12.16490929]
[1765556997435,8.15036811,133.69,133.65,12.16490929]
[1765556997930,0.67,133.68,133.65,7.49033103]
[1765556998349,0.67,133.68,133.63,7.48315549]
[1765556998545,83.16033103,133.68,133.62,14.97411205]
[1765556998757,83.16033103,133.68,133.63,14.97367632]
[1765556998952,0.67,133.67,133.63,14.97367632]
[1765556999442,8.15124241,133.67,133.63,14.97367632]
[1765556999749,0.67,133.67,133.63,14.97367632]
[1765556999956,89.9710167,133.68,133.63,14.97367632]
[1765556999957,0.67,133.66,133.63,14.97367632]
[1765557000269,0.67,133.66,133.6,8.18]
[1765557000270,75.67,133.66,133.5,6.26764213]
[1765557000562,7.49033103,133.61,133.56,7.49033103]
[1765557000722,8.2,133.61,133.55,7.48727829]
[1765557000926,0.67,133.66,133.6,20.53742223]
[1765557001164,0.67,133.66,133.58,0.74861506]
[1765557001363,75.67,133.66,133.57,26.20348879]
[1765557001658,82.49033103,133.6,133.55,7.48742783]
[1765557001849,82.49033103,133.6,133.5,8.18]
[1765557002048,0.67,133.59,133.53,14.9791727]
[1765557002223,91.30027595,133.58,133.53,7.48890309]
[1765557002428,91.30027595,133.58,133.5,8.18]
[1765557002429,16.30027595,133.56,133.5,8.18]
[1765557002627,75.0,133.54,133.47,18.73031506]
[1765557002868,75.0,133.54,133.5,7.49033103]
[1765557003034,0.67,133.53,133.5,7.49033103]
[1765557003235,0.67,133.53,133.51,7.49033103]
[1765557003464,0.67,133.55,133.52,14.97945835]
[1765557003778,0.67,133.55,133.51,14.97999948]
[1765557004277,91.30027595,133.54,133.49,14.98145851]
[1765557004559,8.2,133.53,133.49,14.98147895]
[1765557004869,83.80994492,133.49,133.45,0.2]
[1765557005070,0.67,133.48,133.45,0.2]
[1765557005269,7.49033103,133.47,133.45,0.2]
[1765557005476,7.49033103,133.47,133.38,7.49737591]
[1765557005477,7.49400479,133.44,133.38,7.49737591]
[1765557005777,7.49400479,133.44,133.39,7.49033103]
[1765557005778,8.80994492,133.43,133.39,7.49033103]
[1765557005942,9.47994492,133.43,133.39,7.49033103]
[1765557006144,0.67,133.42,133.38,7.49737591]
[1765557006346,8.16033103,133.42,133.37,7.49783139]
[1765557006587,0.67,133.42,133.38,7.49033103]
[1765557006745,21.9170912,133.41,133.36,7.498409]
[1765557006953,29.40742223,133.41,133.37,7.49784203]
[1765557007166,75.0,133.39,133.35,7.49869432]
[1765557007371,21.85703612,133.38,133.32,7.50065102]
[1765557007587,21.85703612,133.38,133.3,7.49033103]
[1765557007588,7.49033103,133.35,133.3,7.49033103]
[1765557007745,75.0,133.35,133.31,7.50121453]
[1765557007941,0.67,133.37,133.33,7.49033103]
[1765557008143,0.67,133.37,133.31,26.25449635]
[1765557008144,8.16033103,133.36,133.31,7.50121453]
[1765557008344,0.67,133.36,133.3,7.50181781]
[1765557008575,83.16033103,133.35,133.3,14.99214884]
[1765557008759,0.67,133.35,133.31,7.50107283]
[1765557008980,8.16033103,133.34,133.28,8.18]
[1765557009296,8.80994492,133.33,133.26,56.27866381]
[1765557009499,0.67,133.33,133.3,7.50186086]
[1765557010000,83.16033103,133.33,133.29,7.50233611]
[1765557010200,0.67,133.33,133.29,7.50233611]
[1765557010396,0.67,133.32,133.29,7.50233611]
[1765557010604,0.67,133.32,133.27,7.49033103]
[1765557010775,0.67,133.32,133.26,18.76023995]
[1765557010776,8.80994492,133.31,133.28,7.50281443]
[1765557010979,91.30027595,133.31,133.27,7.50309189]
[1765557011176,21.85703612,133.32,133.27,7.50309367]
[1765557011382,0.67,133.3,133.27,7.50309367]
[1765557011582,8.16033103,133.3,133.25,14.99487609]
[1765557011806,8.2,133.29,133.25,7.50454506]
[1765557011972,7.49033103,133.27,133.22,7.49033103]
[1765557012291,0.67,133.3,133.26,7.49033103]
[1765557012493,0.67,133.3,133.27,7.49033103]
[1765557012691,13.0470912,133.31,133.28,7.49033103]
[1765557013209,0.67,133.33,133.29,7.49033103]
[1765557013511,150.0,133.38,133.33,7.5001875]
[1765557013814,0.67,133.39,133.35,7.49033103]
[1765557013974,75.0,133.39,133.34,7.49033103]
[1765557014323,82.49033103,133.37,133.32,7.50046485]
[1765557014485,82.49033103,133.37,133.32,14.99079588]
[1765557014486,9.47994492,133.36,133.32,14.99079588]
[1765557014686,0.67,133.35,133.32,14.99079588]
[1765557015005,8.16033103,133.35,133.3,7.49033103]
[1765557015197,8.80994492,133.34,133.3,14.99216654]
[1765557015398,9.47994492,133.34,133.3,14.99212347]
[1765557015593,0.67,133.33,133.3,7.50179244]
[1765557015789,0.67,133.33,133.3,26.25648111]
[1765557015980,0.67,133.35,133.32,7.49033103]
[1765557016183,8.80994492,133.34,133.3,33.74681214]
[1765557016415,16.30027595,133.34,133.3,7.50179244]
[1765557016710,75.0,133.29,133.24,7.49033103]
[1765557017013,8.22,133.3,133.27,7.5030767]
[1765557017309,8.80994492,133.32,133.28,7.49033103]
[1765557017683,0.71,133.31,133.29,7.50243829]
[1765557018010,0.71,133.32,133.29,7.50243829]
[1765557018316,8.80994492,133.34,133.3,7.49033103]
[1765557018317,17.73994492,133.34,133.3,7.49033103]
[1765557018484,0.71,133.33,133.3,7.49033103]
[1765557018684,0.71,133.38,133.32,7.49033103]
[1765557018906,83.20033103,133.38,133.32,13.0470912]
[1765557019097,83.20033103,133.38,133.32,20.53742223]
[1765557019098,8.80994492,133.37,133.32,20.53742223]
[1765557019417,9.51994492,133.37,133.31,7.49033103]
[1765557019597,83.20868811,133.36,133.31,14.99157494]
[1765557019781,83.20033103,133.36,133.31,7.50124391]
[1765557020118,8.80994492,133.34,133.31,7.50124391]
[1765557020282,0.71,133.35,133.31,14.99157494]
[1765557020485,0.71,133.35,133.32,7.49033103]
[1765557021105,0.71,133.35,133.31,26.25452573]
[1765557021311,0.71,133.35,133.32,7.49033103]
[1765557021505,0.71,133.35,133.33,7.49033103]
[1765557021689,7.49696778,133.39,133.35,7.49906261]
[1765557021690,13.7270912,133.39,133.35,7.49906261]
[1765557021890,0.68,133.38,133.35,14.98939364]
[1765557022090,0.68,133.38,133.34,14.98979217]
[1765557022515,0.68,133.38,133.35,7.49033103]
[1765557022718,0.68,133.38,133.34,26.24852368]
[1765557022892,0.68,133.38,133.35,7.49033103]
[1765557023087,83.17033103,133.38,133.34,7.49946114]
[1765557023294,16.30027595,133.37,133.33,7.50012891]
[1765557023515,16.98027595,133.37,133.33,7.50012891]
[1765557023727,0.68,133.36,133.33,14.99045994]
[1765557024442,8.80994492,133.33,133.24,7.05233005]
[1765557024619,0.68,133.33,133.3,7.49033103]
[1765557024826,8.9,133.35,133.33,7.50006562]
[1765557025011,8.80994492,133.37,133.34,7.49033103]
[1765557025210,0.68,133.36,133.33,7.50006562]
[1765557025405,0.68,133.36,133.32,7.49033103]
[1765557025630,0.68,133.36,133.32,14.99067707]
[1765557025906,0.68,133.36,133.3,18.75422833]
[1765557025907,8.80994492,133.35,133.3,14.99178117]
[1765557026122,0.68,133.36,133.32,7.50072164]
[1765557026415,0.68,133.36,133.32,14.99105267]
[1765557026615,0.68,133.36,133.32,33.74292785]
[1765557026824,0.68,133.36,133.31,7.50118137]
[1765557027012,15.66890807,133.36,133.32,7.5005827]
[1765557027328,8.80994492,133.35,133.28,18.7574519]
[1765557027534,84.48994492,133.35,133.3,7.50182366]
[1765557027744,8.17033103,133.34,133.3,7.50182366]
[1765557027943,15.67011088,133.34,133.3,7.50182366]
[1765557028117,100.20027595,133.33,133.28,7.49033103]
[1765557028545,0.68,133.32,133.28,7.50282873]
[1765557028852,0.68,133.32,133.29,14.99270283]
[1765557029342,8.22,133.33,133.3,7.49033103]
[1765557029643,13.0470912,133.35,133.32,7.49033103]
[1765557029941,13.0470912,133.35,133.32,7.50020897]
[1765557030148,8.22,133.36,133.32,7.50020897]
[1765557030149,8.22,133.36,133.33,7.49033103]
[1765557030348,0.68,133.4,133.35,7.49033103]
[1765557030550,17.02994492,133.41,133.33,0.48432314]
[1765557030848,8.22,133.41,133.33,0.48432314]
[1765557031046,0.68,133.4,133.36,7.49033103]
[1765557031228,0.68,133.4,133.37,7.49033103]
[1765557031622,8.80994492,133.39,133.32,26.25208415]
[1765557031840,9.48994492,133.4,133.36,14.98836159]
[1765557031841,0.68,133.4,133.36,14.98836159]
[1765557032027,0.68,133.39,133.36,7.49803056]
[1765557032227,0.68,133.39,133.37,7.49033103]
[1765557032421,0.68,133.39,133.36,14.98836159]
[1765557032736,75.68,133.39,133.34,7.49033103]
[1765557032936,75.68,133.39,133.35,7.49033103]
[1765557033242,75.68,133.39,133.36,7.49848221]
[1765557033442,0.68,133.38,133.36,7.49848221]
[1765557033621,0.68,133.38,133.35,14.98925444]
[1765557033946,8.17745395,133.38,133.34,7.49033103]
[1765557034239,8.17745395,133.38,133.34,7.49959011]
[1765557034240,8.80994492,133.37,133.34,7.49959011]
[1765557034442,17.70994492,133.37,133.31,7.52599999]
[1765557034747,8.80994492,133.35,133.3,7.52599999]
[1765557034949,8.80994492,133.35,133.31,7.52599999]
[1765557035247,0.68,133.35,133.33,7.52599999]
[1765557035449,8.22,133.37,133.35,7.49876898]
[1765557035653,0.68,133.36,133.33,7.49999636]
[1765557035826,0.68,133.36,133.34,7.49948854]
[1765557036020,0.68,133.36,133.34,7.52599999]
[1765557036430,0.68,133.4,133.35,7.52599999]
[1765557036643,13.7270912,133.4,133.36,7.52599999]
[1765557036825,0.68,133.4,133.36,7.52599999]
[1765557037024,90.7157414,133.41,133.37,7.52599999]
[1765557037327,0.68,133.39,133.37,7.52599999]
[1765557037528,0.68,133.39,133.36,7.52599999]
[1765557038045,0.68,133.39,133.37,7.49793806]
[1765557038252,90.70291603,133.39,133.34,7.49916844]
[1765557038548,7.52599999,133.37,133.33,7.49975109]
[1765557038756,22.53703612,133.38,133.34,7.49948014]
[1765557038949,0.68,133.37,133.35,7.4987578]
[1765557039157,0.68,133.37,133.34,7.4994152]
[1765557039332,0.68,133.37,133.35,7.49902872]
[1765557039726,0.68,133.37,133.34,7.49946027]
[1765557040046,0.68,133.37,133.34,15.02546026]
[1765557040230,8.17811584,133.37,133.33,15.02617656]
[1765557040634,0.68,133.36,133.33,7.49998051]
[1765557041064,0.68,133.36,133.31,7.5008382]
[1765557041226,0.68,133.36,133.33,7.52599999]
[1765557041426,0.68,133.36,133.34,7.49955291]
[1765557041627,8.80994492,133.4,133.35,7.52599999]
[1765557041844,9.48994492,133.4,133.35,7.52599999]
[1765557042056,0.68,133.39,133.37,7.52599999]
[1765557042852,8.80994492,133.38,133.34,7.49955291]
[1765557043021,16.33594491,133.38,133.34,7.49955291]
[1765557043229,0.68,133.37,133.34,7.49955291]
[1765557043438,0.68,133.39,133.34,7.49955291]
[1765557043650,0.68,133.39,133.35,7.52599999]
[1765557043879,0.68,133.39,133.34,26.24861545]
[1765557044028,0.68,133.39,133.34,33.77461544]
[1765557044229,15.70314406,133.39,133.34,15.0255529]
[1765557044657,9.48994492,133.38,133.34,7.49955291]
[1765557044858,16.33594491,133.37,133.33,7.50007447]
[1765557045178,25.23594491,133.37,133.33,7.50007447]
[1765557045341,0.68,133.36,133.34,7.4995252]
[1765557045657,17.02994492,133.37,133.34,7.4995252]
[1765557045658,8.22,133.37,133.34,15.02552519]
[1765557045871,8.9,133.37,133.34,26.24858774]
[1765557046041,8.9,133.37,133.34,33.77458773]
[1765557046237,8.9,133.37,133.35,7.52599999]
[1765557046238,8.22,133.37,133.35,7.52599999]
[1765557046550,17.70994492,133.4,133.35,7.52599999]
[1765557046754,0.68,133.39,133.35,7.52599999]
[1765557047347,8.20599999,133.39,133.34,33.77458773]
[1765557047535,96.2670912,133.41,133.34,33.77458773]
[1765557047536,8.22,133.41,133.34,26.24858774]
[1765557047732,8.22,133.41,133.37,7.52599999]
[1765557047933,0.68,133.4,133.38,7.52599999]
[1765557048256,0.68,133.4,133.38,7.49737591]
[1765557049950,83.20599999,133.4,133.34,26.27430063]
[1765557050166,90.70242308,133.4,133.36,7.49815657]
[1765557050352,0.68,133.39,133.36,7.49815657]
[1765557050947,15.70192573,133.41,133.36,15.02415656]
[1765557051177,0.68,133.4,133.36,15.02415656]
[1765557051470,0.68,133.4,133.36,33.7704073]
[1765557051651,21.9470912,133.42,133.36,26.24440731]
[1765557051860,0.68,133.41,133.37,7.52599999]
[1765557052384,0.68,133.41,133.38,7.49737591]
[1765557052676,0.68,133.41,133.34,0.34216157]
[1765557052677,8.17588233,133.41,133.36,7.49828148]
[1765557052894,7.52599999,133.39,133.36,7.49828148]
[1765557053052,82.52599999,133.38,133.31,18.75255949]
[1765557053366,16.33594491,133.37,133.32,7.50054705]
[1765557053577,16.33594491,133.35,133.3,7.5016775]
[1765557053754,16.33594491,133.35,133.29,34.48134262]
[1765557053956,16.33594491,133.33,133.28,7.50261402]
[1765557054177,16.33594491,133.33,133.23,0.4]
[1765557054178,82.52599999,133.31,133.25,7.52599999]
[1765557054385,82.52599999,133.31,133.27,7.52599999]
[1765557054386,8.80994492,133.31,133.27,7.52599999]
[1765557054584,9.48994492,133.32,133.26,26.26444543]
[1765557054748,9.48994492,133.32,133.27,7.52599999]
[1765557054947,0.68,133.32,133.26,26.26444543]
[1765557055355,0.68,133.32,133.27,7.52599999]
[1765557055556,0.68,133.32,133.26,26.26444543]
[1765557055777,0.68,133.32,133.28,7.52599999]
[1765557056277,0.68,133.32,133.28,7.5030012]
[1765557056452,13.0470912,133.33,133.28,7.7030012]
[1765557056649,0.68,133.32,133.28,33.78650419]
[1765557056875,0.68,133.32,133.28,7.5030012]
[1765557057086,8.80994492,133.31,133.26,7.52599999]
[1765557057379,7.52599999,133.3,133.25,7.52599999]
[1765557057584,0.68,133.3,133.26,7.52599999]
[1765557057780,0.68,133.3,133.24,18.76259322]
[1765557057781,0.68,133.34,133.29,7.52599999]
[1765557057963,9.48994492,133.34,133.27,26.26229241]
[1765557058279,9.48994492,133.34,133.27,26.46229241]
[1765557058486,9.48994492,133.34,133.3,12.23344294]
[1765557058667,9.48994492,133.34,133.27,26.46229241]
[1765557059172,0.68,133.34,133.27,26.46229241]
[1765557060076,0.68,133.34,133.3,12.23344294]
[1765557060277,16.98963281,133.34,133.27,18.75891048]
[1765557060470,96.04338786,133.33,133.27,18.75891048]
[1765557060667,13.0470912,133.32,133.27,12.23344294]
[1765557060865,13.7270912,133.32,133.28,12.23344294]
[1765557061082,8.17968789,133.34,133.29,12.23344294]
[1765557061411,75.0,133.31,133.26,38.49788837]
[1765557061588,75.0,133.31,133.26,19.7375702]
[1765557061890,9.48994492,133.3,133.25,19.73798012]
[1765557062386,12.23344294,133.27,133.23,7.70565279]
[1765557062578,75.0,133.26,133.23,0.2]
[1765557062775,0.68,133.27,133.23,7.70574034]
[1765557063164,12.91344294,133.27,133.23,7.70574034]
[1765557063361,12.91344294,133.27,133.23,0.2]
[1765557063684,0.68,133.26,133.23,7.70537707]
[1765557063857,0.68,133.26,133.23,0.2]
[1765557064258,8.18420445,133.26,133.23,0.2]
[1765557064455,95.41757301,133.26,133.23,0.2]
[1765557064792,21.04338786,133.24,133.23,0.2]
[1765557064968,0.68,133.25,133.23,0.2]
[1765557065361,13.7270912,133.25,133.23,7.70572296]
[1765557065585,13.0470912,133.27,133.23,19.9391659]
[1765557065881,13.7270912,133.27,133.23,26.47026548]
[1765557066082,0.68,133.26,133.23,0.2]
[1765557066478,20.41757245,133.26,133.23,0.2]
[1765557066989,13.0470912,133.27,133.23,26.4701718]
[1765557067291,0.68,133.3,133.23,26.6701718]
[1765557067482,12.91344294,133.29,133.23,38.70361474]
[1765557067793,0.68,133.29,133.23,19.93907222]
[1765557067963,0.68,133.29,133.24,12.23344294]
[1765557068170,12.91344294,133.29,133.23,38.70361474]
[1765557068464,7.50308397,133.28,133.23,0.2]
[1765557068686,12.23344294,133.27,133.23,0.2]
[1765557068992,12.91344294,133.27,133.23,0.2]
[1765557069363,0.68,133.26,133.23,0.2]
[1765557069664,193.29053189,133.28,133.23,19.93894807]
[1765557069665,8.80994492,133.28,133.23,19.93894807]
[1765557069885,0.68,133.27,133.23,19.93894807]
[1765557070088,9.48994492,133.28,133.23,19.93894807]
[1765557070268,0.68,133.28,133.23,38.70349059]
[1765557070595,20.54969404,133.29,133.25,7.50469043]
[1765557071258,20.54969404,133.29,133.25,19.93813337]
[1765557071259,13.0470912,133.29,133.25,19.93813337]
[1765557071481,0.68,133.32,133.27,12.23344294]
[1765557071990,0.68,133.32,133.26,0.2]
[1765557072165,0.68,133.32,133.27,12.23344294]
[1765557072365,110.7795139,133.34,133.3,7.50187546]
[1765557072366,17.02994492,133.34,133.3,7.50187546]
[1765557072669,8.22,133.34,133.3,19.7396336]
[1765557072885,7.49867219,133.36,133.31,12.23775814]
[1765557073069,21.22576339,133.36,133.31,12.23775814]
[1765557073473,8.22,133.37,133.32,12.23775814]
[1765557073676,0.68,133.36,133.3,26.25656413]
[1765557073905,0.68,133.36,133.32,12.23775814]
[1765557074068,8.22,133.37,133.33,12.23775814]
[1765557074265,87.23775814,133.35,133.3,7.50187546]
[1765557074470,19.73794564,133.33,133.28,7.50261547]
[1765557074674,7.5001875,133.33,133.29,7.50225931]
[1765557074890,8.1801875,133.33,133.28,7.50283315]
[1765557075074,8.1801875,133.33,133.25,8.4]
[1765557075075,12.23775814,133.31,133.25,8.2]
[1765557075277,12.23775814,133.29,133.23,0.2]
[1765557075580,8.80994492,133.3,133.24,19.74292097]
[1765557075581,17.70994492,133.3,133.24,19.74292097]
[1765557075793,0.68,133.29,133.24,19.74292097]
[1765557076170,8.22,133.3,133.25,12.23775814]
[1765557076485,25.96484934,133.31,133.25,12.23775814]
[1765557076486,8.22,133.33,133.28,12.23775814]
[1765557076689,8.22,133.33,133.27,7.50356419]
[1765557076867,0.68,133.32,133.27,38.50023281]
[1765557077066,13.0470912,133.34,133.29,12.23775814]
[1765557077292,13.0470912,133.34,133.28,0.28432314]
[1765557077462,13.7270912,133.34,133.29,12.23775814]
[1765557077867,0.68,133.34,133.3,12.23775814]
[1765557078094,0.68,133.34,133.29,12.23775814]
[1765557078594,8.17976311,133.34,133.29,7.50195346]
[1765557078786,0.68,133.34,133.29,19.7397116]
[1765557078991,8.22,133.36,133.32,12.23775814]
[1765557079179,0.68,133.37,133.34,12.23775814]
[1765557079780,8.17802069,133.37,133.32,12.23775814]
[1765557079968,12.23775814,133.36,133.31,12.23775814]
[1765557080168,0.7,133.36,133.31,12.23775814]
[1765557080374,0.7,133.35,133.31,12.23775814]
[1765557080574,0.7,133.35,133.32,7.50075007]
[1765557080778,8.22,133.37,133.33,12.23775814]
[1765557081080,0.7,133.36,133.31,19.73892406]
[1765557081298,8.22,133.37,133.34,12.23775814]
[1765557081682,8.22,133.37,133.33,12.23775814]
[1765557081683,8.92,133.37,133.33,12.23775814]
[1765557081885,8.22,133.37,133.31,26.25444774]
[1765557082100,0.7,133.36,133.31,19.73892406]
[1765557082410,12.23775814,133.34,133.29,7.50231805]
[1765557082586,19.73815154,133.33,133.27,38.4996114]
[1765557082791,12.23775814,133.32,133.27,19.74132233]
[1765557082978,150.7,133.31,133.23,12.43775814]
[1765557083283,75.0,133.29,133.23,12.43775814]
[1765557083483,75.0,133.29,133.24,19.74261502]
[1765557083672,75.7,133.29,133.24,19.74261502]
[1765557083876,0.7,133.28,133.24,7.50485688]
[1765557084279,0.7,133.28,133.24,19.74261502]
[1765557084907,0.7,133.28,133.24,7.50485688]
[1765557085207,8.2032495,133.28,133.24,7.50485688]
[1765557085388,13.0470912,133.3,133.26,12.23775814]
[1765557085602,0.7,133.31,133.26,12.23775814]
[1765557085813,0.7,133.3,133.26,12.23775814]
[1765557085977,13.0470912,133.32,133.28,12.23775814]
[1765557086176,13.7470912,133.32,133.27,12.23775814]
[1765557086486,21.2480063,133.32,133.27,12.23775814]
[1765557086684,13.0470912,133.32,133.28,7.5030012]
[1765557086999,13.0470912,133.32,133.28,19.74075934]
[1765557087186,0.7,133.35,133.31,12.23775814]
[1765557087510,0.68,133.37,133.32,12.23775814]
[1765557087809,0.68,133.37,133.33,12.23775814]
[1765557088009,20.41587053,133.37,133.31,12.23775814]
[1765557088184,8.80994492,133.36,133.31,12.23775814]
[1765557088392,21.72770306,133.36,133.3,12.23775814]
[1765557088714,0.68,133.35,133.3,12.23775814]
[1765557088930,20.41692045,133.35,133.29,12.23775814]
[1765557089215,0.68,133.34,133.29,12.23775814]
[1765557089513,0.68,133.34,133.28,26.2605042]
[1765557089714,0.68,133.34,133.3,12.23775814]
[1765557090094,21.04770306,133.33,133.28,7.5030012]
[1765557090414,8.80994492,133.33,133.28,19.74075934]
[1765557090708,0.68,133.32,133.28,7.5030012]
[1765557090885,83.18100156,133.32,133.26,13.0470912]
[1765557091087,83.18100156,133.32,133.25,15.70431192]
[1765557091088,83.80994492,133.3,133.25,15.70431192]
[1765557091283,0.68,133.29,133.25,8.2]
[1765557091814,0.68,133.29,133.25,7.504622]
[1765557092310,87.23775814,133.28,133.24,7.50513005]
[1765557092516,21.04770306,133.27,133.23,0.2]
[1765557092724,21.72770306,133.27,133.23,0.2]
[1765557092938,83.18412726,133.26,133.23,0.2]
[1765557093087,8.80994492,133.25,133.23,0.2]
[1765557093284,0.68,133.25,133.23,0.2]
[1765557093712,24.53353402,133.27,133.23,7.70569872]
[1765557093895,0.68,133.25,133.23,7.70569872]
[1765557094212,0.68,133.25,133.23,0.2]
[1765557094699,0.68,133.25,133.23,7.70579457]
[1765557094899,0.68,133.25,133.23,0.2]
[1765557095698,8.18473709,133.25,133.23,0.2]
[1765557095902,20.42249523,133.25,133.23,0.2]
[1765557096104,0.68,133.24,133.23,0.2]
[1765557096333,75.0,133.21,133.17,0.2]
[1765557096508,75.0,133.21,133.12,0.2]
[1765557096509,83.80994492,133.17,133.12,0.2]
[1765557096820,21.04770306,133.16,133.12,0.2]
[1765557097028,16.99970761,133.16,133.12,7.71196036]
[1765557097198,29.23746575,133.16,133.12,0.2]
[1765557098530,37.45746575,133.16,133.12,0.2]
[1765557099227,13.0470912,133.13,133.12,0.2]
[1765557099431,25.28484934,133.13,133.12,0.2]
[1765557099612,35.0591174,133.13,133.12,0.2]
[1765557099814,35.0591174,133.13,133.09,0.2]
[1765557099815,34.09479426,133.1,133.09,0.2]
[1765557100013,42.31479426,133.1,133.09,0.2]
[1765557100225,43.2791174,133.1,133.09,0.2]
[1765557100424,150.0,133.08,133.01,0.2]
[1765557100606,12.23775814,133.06,133.01,0.2]
[1765557100804,21.04770306,133.05,133.01,0.2]
[1765557101005,29.24379111,133.05,133.01,0.2]
[1765557101227,25.28484934,133.02,133.01,0.2]
[1765557101534,109.09479426,133.02,133.01,0.2]
[1765557101733,8.22,133.06,133.01,0.2]
[1765557101734,91.41543616,133.06,133.01,0.2]
[1765557101935,75.0,133.08,133.03,12.23775814]
[1765557102110,13.0470912,133.08,133.01,27.23365627]
[1765557102311,20.56152157,133.08,133.02,12.95775814]
[1765557102520,21.24152157,133.08,133.02,12.95775814]
[1765557102843,13.7270912,133.08,133.02,12.95775814]
[1765557103145,21.85703612,133.06,133.01,0.2]
[1765557103345,8.80994492,133.04,133.01,0.2]
[1765557103638,8.80994492,133.04,133.01,7.71803176]
[1765557103837,8.80994492,133.04,133.01,0.2]
[1765557103838,21.04770306,133.04,133.01,0.2]
[1765557104022,21.04770306,133.02,133.01,0.2]
[1765557104226,21.3320262,133.02,133.01,0.2]
[1765557104519,21.3320262,133.02,132.96,7.72091597]
[1765557104520,8.80994492,132.99,132.96,0.2]
[1765557104715,12.23775814,132.98,132.96,0.2]
[1765557104916,12.91775814,132.98,132.96,0.2]
[1765557105115,21.72770306,132.97,132.96,0.2]
[1765557105636,34.77479426,132.97,132.96,0.2]
[1765557106012,110.0591174,132.97,132.96,0.2]
[1765557107023,117.57961074,132.97,132.96,0.2]
[1765557107224,105.3418526,132.97,132.96,0.2]
[1765557107431,104.53251954,132.97,132.96,0.2]
[1765557109311,21.04770306,132.92,132.86,12.23775814]